Cogmind - Beta 14 @@@ ROGUE MODE // 2024.10.18 @ 22:11:10 Player: Gilgameshx13 Result: Destroyed by as-04606 with Assembled Rifle Performance ------------- Evolutions (1) 500 Regions Visited (3) 600 Robots Destroyed (25) 125 Value Destroyed (694) 694 Prototype IDs (1) 20 Alien Tech Used (0) 0 Bonus (10) 10 TOTAL SCORE: 1949 Bonus ------- High Alert Combat Kills 10 Cogmind --------- Core Integrity 0/400 Matter 300/300 Energy 25/100 System Corruption 0% Temperature Warm (100) Movement Core (150) Ox2 Location -9/Mines Parts ------- > --- POWER (1) -------- (None) > --- PROPULSION (2) --- (None) > --- UTILITY (4) ------ Small Storage Unit Visual Processing Unit Targeting Computer Targeting Computer > --- WEAPON (2) ------- Advanced Beam Rifle Advanced Beam Rifle > --- INVENTORY (8) ---- Heat Sink Improved Heat Sink Improved Signal Interpreter Improved Signal Interpreter ECM Suite Shock Rifle Advanced Beam Rifle Heavy Mace Peak State ------------ > --- POWER ------------ Light Ion Engine > --- PROPULSION ------- Aluminum Leg Aluminum Leg > --- UTILITY ---------- Small Storage Unit Visual Processing Unit Targeting Computer Targeting Computer > --- WEAPON ----------- Advanced Beam Rifle Advanced Beam Rifle > --- INVENTORY -------- Heat Sink Improved Heat Sink Improved Signal Interpreter Improved Signal Interpreter ECM Suite Shock Rifle Advanced Beam Rifle Heavy Mace [Rating: 18] Favorites ----------- Power Ion Engine Engine Ion Engine Propulsion Aluminum Leg Leg Aluminum Leg Wheel Wheel Utility Targeting Computer Storage Small Storage Unit Processor Targeting Computer Weapon Advanced Beam Rifle Energy Gun Advanced Beam Rifle Ballistic Gun Assault Rifle Build | -11 -10 -9 -9 ------- Run | Yrd Mat Mat Min Slots Evolved 2 | . . 2 . Power . | . . . . Propulsion . | . . . . Utility 2 | . . 2 . Weapon . | . . . . Parts Attached 22 | 6 2 14 . Power 4 | 1 . 3 . Engine 4 | 1 . 3 . Core . | . . . . Reactor . | . . . . Propulsion 7 | 1 1 5 . Treads . | . . . . Leg 5 | . . 5 . Wheel 2 | 1 1 . . Hover . | . . . . Flight . | . . . . Utility 4 | 1 1 2 . Device . | . . . . Storage 1 | 1 . . . Processor 3 | . 1 2 . Hackware . | . . . . Protection . | . . . . Artifact . | . . . . Weapon 7 | 3 . 4 . Energy Gun 6 | 2 . 4 . Energy Cannon . | . . . . Ballistic Gun 1 | 1 . . . Ballistic Cannon . | . . . . Launcher . | . . . . Special Weapon . | . . . . Impact Weapon . | . . . . Slashing Weapon . | . . . . Piercing Weapon . | . . . . Special Melee Weapon . | . . . . Unidentified Prototypes 1 | . . 1 . Parts Lost 5 | . . 3 2 Power 2 | . . 2 . Propulsion 3 | . . 1 2 Utility . | . . . . Weapon . | . . . . Highest Loss Streak 2 | . . 1 2 To Critical Strikes . | . . . . Average Slot Usage (%) 85 | . 89 85 83 Engine 9 | . 14 10 . Leg 10 | . . 11 17 Wheel 5 | . 20 3 . Storage 11 | . 14 11 11 Processor 25 | . 11 27 33 Energy Gun 20 | . 14 20 22 Ballistic Gun 2 | . 14 . . Peak Build Rating 18 | 5 7 18 17 Average Rating 13 | 4 6 14 16 On Entrance 7 | . 5 7 17 Naked Turns . | . . . . Heaviest Build 14 | 14 14 14 9 Greatest Support 26 | 10 26 26 20 Greatest Overweight (x) 4 | 1 1 4 . Average Overweight (x) . | . . . . Largest Inventory Capacity 8 | 8 8 8 8 Average Capacity 7 | 7 8 8 8 Most Carried 8 | 6 8 8 8 Average Carried 7 | 4 7 7 8 Final Capacity 8 | 8 8 8 8 Final Carried 8 | 6 8 8 8 Class Distribution -------------------- 100% | Mutant Dominant Class ---------------- Mutant | -10/Materials Mutant | -9/Materials Mutant | -9/Mines Resources | -11 -10 -9 -9 ----------- Run | Yrd Mat Mat Min Matter Collected 448 | 224 89 135 . Remotely . | . . . . Salvage Created 958 | . 142 778 38 Parts 59 | . 6 53 . Haulers Intercepted . | . . . . Recyclers Shooed . | . . . . Parts Field Recycled . | . . . . Retrieved Matter . | . . . . Parts Self-Destructed . | . . . . Prevented . | . . . . Kills | -11 -10 -9 -9 ------- Run | Yrd Mat Mat Min Combat Hostiles Destroyed 25 | . 2 19 4 Guns 25 | . 2 19 4 Classes Destroyed 8 | . 2 5 1 Builder 1 | . . 1 . Recycler 1 | . 1 . . Watcher 2 | . . 2 . Swarmer 6 | . . 6 . Grunt 9 | . 2 7 . Duelist 1 | . . 1 . Sentry 5 | . . 5 . Assembled 4 | . . . 4 Best Kill Streak 4 | . 2 4 4 Combat Bots Only 4 | . 1 4 4 Max Kills in Single Turn 2 | . 1 2 2 Gunslinging 1 | . . . 1 Exploded . | . . . . Melee . | . . . . Uniques/NPCs Destroyed . | . . . . Combat | -11 -10 -9 -9 -------- Run | Yrd Mat Mat Min Hostile Shots Fired 119 | . 5 91 23 Missed 38 | . 1 31 6 Damage Taken 1117 | . 42 764 311 Core 420 | . 10 259 151 Absorbed by Shields . | . . . . Core Remaining (%) 98 | 100 96 . . Volleys Fired 69 | 1 10 53 5 Largest 2 | 2 2 2 2 Hottest 122 | 70 70 122 122 Shots Fired 123 | 2 20 91 10 Gun 123 | 2 20 91 10 Cannon . | . . . . Launcher . | . . . . Special . | . . . . Kinetic 11 | 1 10 . . Thermal 112 | 1 10 91 10 Explosive . | . . . . Electromagnetic . | . . . . Robot Hit Streak 29 | . 14 29 6 Robot Miss Streak 4 | 2 4 4 1 Penetration Max . | . . . . Secondary Targets 3 | . . 2 1 Max Gunslinging Chain 1 | . . 1 1 Shots Hit Robots 75 | . 15 52 8 Core Hits 33 | . 5 24 4 Critical Kills . | . . . . Critical Parts Destroyed . | . . . . Critical Strikes 8 | . 1 6 1 Burn 8 | . 1 6 1 Melee Attacks . | . . . . Impact . | . . . . Slashing . | . . . . Piercing . | . . . . Sneak Attacks . | . . . . Combat Hostiles . | . . . . Follow-up Attacks . | . . . . Damage Inflicted 1382 | . 182 1080 120 Guns 1382 | . 182 1080 120 Cannons . | . . . . Explosions . | . . . . Melee . | . . . . Ramming . | . . . . Kinetic 94 | . 94 . . Thermal 1288 | . 88 1080 120 Explosive . | . . . . Electromagnetic . | . . . . Impact . | . . . . Slashing . | . . . . Piercing . | . . . . Highest Corruption . | . . . . Average Corruption . | . . . . Corruption Purged . | . . . . Corruption Blocked . | . . . . Overload Shots . | . . . . Overflow Damage . | . . . . Projectiles . | . . . . Explosions . | . . . . Melee . | . . . . Knockbacks . | . . . . Impact . | . . . . Kinetic . | . . . . Secondary . | . . . . Self-Inflicted Damage . | . . . . Shots . | . . . . Rammed . | . . . . Targets Rammed . | . . . . Kicked . | . . . . Crushed . | . . . . Highest Temperature 429 | 9 54 429 144 Average Temperature 120 | 6 19 138 82 Received Heat Transfer 240 | . 24 216 . Effects 5 | . . 5 . Energy Bleed 1 | . . 1 . Interference 4 | . . 4 . Siege Activations . | . . . . Robots Corrupted . | . . . . Combat Hostiles . | . . . . Parts Fried . | . . . . Impact Corruptions . | . . . . Robots Melted . | . . . . Combat Hostiles . | . . . . Parts Melted 7 | . . 7 . Heat Transferred 3071 | . 333 2442 296 Parts Sabotaged . | . . . . Parts Stolen . | . . . . Parts Stripped . | . . . . Power Chain Reactions . | . . . . Alert | -11 -10 -9 -9 ------- Run | Yrd Mat Mat Min Peak Influence 461 | . 110 461 175 Initial 175 | . . 46 175 Average 137 | . 49 161 172 Maximum Alert Level 2 | . . 2 . Low Security (%) 86 | 100 100 80 100 Level 1 8 | . . 12 . Level 2 4 | . . 6 . Level 3 . | . . . . Level 4 . | . . . . Level 5 . | . . . . High Security . | . . . . Max Security . | . . . . Squads Dispatched 4 | . 2 2 . Investigation 1 | . . 1 . Extermination . | . . . . Reinforcement 3 | . 2 1 . Assault . | . . . . Garrison . | . . . . Intercept . | . . . . Searches Triggered . | . . . . Construction Impeded . | . . . . Haulers Reinforced . | . . . . Active Scanning Responses . | . . . . Cargo Convoy Interrupts . | . . . . Stealth | -11 -10 -9 -9 --------- Run | Yrd Mat Mat Min Distress Signals 5 | . 1 4 . Communications Jammed . | . . . . Distress Signals . | . . . . Times Spotted 47 | . 7 33 7 Peak Tracking Total 8 | . 3 6 8 Tactical Retreats 3 | . . 2 1 Traps | -11 -10 -9 -9 ------- Run | Yrd Mat Mat Min Traps Triggered 2 | . . 2 . Indirectly . | . . . . Trap Hack Attempts . | . . . . Triggered . | . . . . Disarmed . | . . . . Reprogrammed . | . . . . Reused . | . . . . Traps Extracted . | . . . . Installed . | . . . . Triggered . | . . . . Machines | -11 -10 -9 -9 ---------- Run | Yrd Mat Mat Min Machines Disabled . | . . . . Max in Single Turn . | . . . . Machines Repaired . | . . . . Machines Dismantled . | . . . . Machines Sabotaged . | . . . . Overloaded Fab Kills . | . . . . Hacking | -11 -10 -9 -9 --------- Run | Yrd Mat Mat Min Machines Accessed 4 | . 1 3 . Terminals 4 | . 1 3 . Fabricators . | . . . . Repair Stations . | . . . . Recycling Units . | . . . . Scanalyzers . | . . . . Garrison Access . | . . . . Total Hacks 14 | . 2 12 . Successful 2 | . . 2 . Failed 12 | . 2 10 . Catastrophic . | . . . . Database Lockouts . | . . . . Manual 8 | . 1 7 . Terminals 14 | . 2 12 . Fabricators . | . . . . Repair Stations . | . . . . Recycling Units . | . . . . Scanalyzers . | . . . . Garrison Access . | . . . . Terminal Hacks 1 | . . 1 . Recall Investigation 1 | . . 1 . Fabricator Hacks . | . . . . Repair Station Hacks . | . . . . Recycling Unit Hacks . | . . . . Scanalyzer . | . . . . Garrison Access Hacks . | . . . . Unauthorized Hacks 1 | . . 1 . Terminals 1 | . . 1 . Botnet 1 | . . 1 . Fabricators . | . . . . Repair Stations . | . . . . Recycling Units . | . . . . Scanalyzers . | . . . . Garrison Access . | . . . . Data Cores Recovered . | . . . . Used . | . . . . Hacking Detections 4 | . 1 3 . Full Trace Events 3 | . . 3 . Feedback Events . | . . . . Feedback Blocked . | . . . . Robot Schematics Acquired . | . . . . Robots Built . | . . . . Authchips . | . . . . Time . | . . . . Total Robot Build Rating . | . . . . Part Schematics Acquired . | . . . . Parts Built . | . . . . Authchips . | . . . . Time . | . . . . Total Part Build Rating . | . . . . Parts Repaired . | . . . . Time . | . . . . Parts Recycled . | . . . . Recycled Matter . | . . . . Retrieved Matter . | . . . . Retrieved Components . | . . . . Parts Scanalyzed . | . . . . Part Schematics Acquired . | . . . . Parts Damaged . | . . . . Bothacking | -11 -10 -9 -9 ------------ Run | Yrd Mat Mat Min Used RIF Installer . | . . . . Robots Hacked . | . . . . Non-combat . | . . . . Combat . | . . . . Robot Hacks Applied . | . . . . Relay Couplers Released . | . . . . Fabnet Peak Effective % . | . . . . Robots Rewired . | . . . . Allies Hacked . | . . . . Hacks Repelled . | . . . . Allies | -11 -10 -9 -9 -------- Run | Yrd Mat Mat Min Total Allies . | . . . . Largest Group . | . . . . Highest-Rated Group . | . . . . Highest-Rated Ally . | . . . . Total Orders . | . . . . Ally Attacks . | . . . . Total Damage . | . . . . Kills . | . . . . Allies Corrupted . | . . . . Allies Melted . | . . . . Intel | -11 -10 -9 -9 ------- Run | Yrd Mat Mat Min Robot Analysis Total . | . . . . Derelict Logs Recovered 1 | . . . 1 Drone Launches . | . . . . Drone Recoveries . | . . . . Exploration | -11 -10 -9 -9 ------------- Run | Yrd Mat Mat Min Turns Passed 1111 | 84 126 799 102 Spaces Moved 675 | 73 98 432 72 Core 100 | 12 . 88 . Treads . | . . . . Legs 323 | . . 251 72 Wheels 252 | 61 98 93 . Hover . | . . . . Flight . | . . . . Fastest Speed 50 | 50 90 90 120 Average Speed 124 | 87 92 138 120 Slowest Speed 250 | 95 95 250 120 Overloaded Moves . | . . . . Propulsion Burnouts . | . . . . Robots Hopped . | . . . . Cave-ins Triggered . | . . . . Exploration Rate (%) 22 | 4 26 33 26 Regions Visited 3 Branch Regions 1 Pre-discovered Areas 1 | . . . 1 Known Exits Taken . | . . . . Unknown Exits Taken 3 | 1 1 1 . Scrap Searched . | . . . . Spaces Dug . | . . . . Terrain Destroyed . | . . . . Melee . | . . . . Projectile . | . . . . AOE . | . . . . Terrain Rammed . | . . . . Walls Destroyed . | . . . . Machines Disabled . | . . . . Actions | -11 -10 -9 -9 --------- Run | Yrd Mat Mat Min Total 835 | 92 113 551 79 Wait 16 | . . 14 2 Move 672 | 72 97 431 72 Hop . | . . . . Pick Up 40 | 12 4 24 . Fast Attach . | . . . . Attach 19 | 5 2 12 . Detach . | . . . . Swap 3 | 1 . 2 . Drop 16 | 1 . 15 . Fire 69 | 1 10 53 5 Melee . | . . . . Ram . | . . . . Kick . | . . . . Crush . | . . . . Escape Stasis . | . . . . Rewire . | . . . . Trap . | . . . . Miscellaneous . | . . . . Route ------- -11/Scrapyard -10/Materials -9/Materials -9/Mines History --------- Turn | Location | Event 8 | -11/Scrapyard | Discovered new exit (range 16) 85 | -11/Scrapyard | Entered Materials 202 | -10/Materials | Discovered new exit (range 9) 211 | -10/Materials | Entered another Materials area 211 | -9/Materials | Evolved 2 slots: Utility x2 306 | -9/Materials | Build established: Mutant 859 | -9/Materials | Core integrity fell below 50% 973 | -9/Materials | Discovered new exit (range 15) 1010 | -9/Materials | Entered Mines 1043 | -9/Mines | Learned location of Storage (-9) 1057 | -9/Mines | Assembled infested the area 1100 | -9/Mines | Core integrity fell below 20% 1112 | -9/Mines | Destroyed by as-04606 with Assembled Rifle Last Messages --------------- Lgt. Ion Engine destroyed. K-01 Serf cleans the Nuclear Reactor. LOCATION=UNKNOWN GOAL=ESCAPE Something is scanning the area. K-01 Serf collects debris. Acquired derelict log, extracted data. World map updated: -9/Storage. K-01 Serf collects debris. ALERT: Infestation in the mines, dispatching Demolisher response squad. K-01 Serf collects debris. as-40211 suffers critical hit (Burn). Destroyed Asb. Hover Unit. Aluminum Leg destroyed. as-40211 destroyed. Switching to secondary target: as-57699. as-57699 destroyed. as-19475 destroyed. as-60942 destroyed. Map ----- +----------------------------------------------------+ | ?????????????????????????????????????????????????? | | ?????????????????????????????????????????????????? | | ?????????????????????????????????????????????????? | | ?????????????????????????????????????????????????? | | ?????????????????????????????????????????????????? | | ?????????????????????????????????????????????????? | | ?????????????????????????????????????????????????? | | ?????????????????????????????????????????????????? | | ?????????????????????????????????????????????????? | | ?????????????????????????????????????????????????? | | ?????????????????????????????????????????????????? | | ?????????????????????????????????????????????????? | | ?????????????????????????????????????????????????? | | ?????????????????????????????????????????????????? | | ?????????????????????????????????????????????????? | | ?????????????????????????????????????????????????? | | ?????????????????????????????????????????????????? | | ??????????????????????????????????#??????????????? | | ??????????????????????????????????# ?????????????? | | ??????????????????????????????##### #????????????? | | ??????????????????????????????? #####???????? | | ?????????????????????######???????# #???????? | | ????????????????????## ##??????# ######### | | ????????????????????# #??????????# | | ????????????????????# #??????????# ##### ### | | ????????????????????# @#???????????# ##??# #?? | | ????????????????????# %%#???????????# #### #?? | | ????????????????????## ##??????????## #?? | | ????????????????????## #????????#### #### #?? | | ???????????????????## %a##??????## ##?# #?? | | ??????????????????## ##?????# ## ##? | | ??????????????????# #?????# ## | | ??????????????????# #?????## ## | | ??????????????????## #??????## ## | | ???????????????????## ##??????## ## | | ????????????????????# ##?????## ### | | ????????????????????## ##???## ##?# | | ?????????????????????## ##??# ##??# | | ??????????????????????### #??# ## #???# | | ????????????????????????## #??# ##?# #??? | | ????????????????????????## #??# ##?? #?? | | ????????????????????????# #### ##? #?? | | ????????????????????????# ## #? ##?? | | ????????????????????????# #? #??? | | ????????????????????????## #?# ##??? | | ?????????????????????????## #### #??###???? | | ??????????????????????????# # ##???# #???????? | | ??????????????????????????? ## ##????? #??????? | | ?????????????????????????????## #??????# #??????? | | ??????????????????????????????# #???????###??????? | +----------------------------------------------------+ Best States ------------- Heat Dissipation 28 Energy Generation 10 Energy Capacity 250 Matter Stores 300 Matter Capacity 300 Sight Range 18 Terrain Scan Density 10 Evasion (%) 55 Targeting Accuracy 10 Item Schematics ----------------- None Robot Schematics ------------------ None Fabricated ------------ Nothing Alien Tech Used ----------------- None Achievements -------------- None Challenges ------------ None Game ------ Seed TowerEtherialShovel Manual? 0 Play Time 00:13:25 Cumulative 29.2 hours Start 2024.10.18 @ 21:57:57 End 2024.10.18 @ 22:11:10 Sessions 1 Manual Loads 0 Difficulty Rogue Special Mode None Game No. 75 Rogue 55 Adventurer 20 Explorer 0 Win Type - Total 1 Types 1/0/0/0/0/0/0/0/0 Lore% 14 Gallery% 38 Achievement% 33 Wizard Run 0 Options --------- Layout 1 ASCII 0 Keyboard 0 Movement Arrows Keybinds 0 Fullscreen 1 Font 36/Smallcaps Map View 55x43 Zoom Use 0% Tactical HUD 0 Map Filters NONE Filters NONE Steam 1 RUN: 5684f30b-e381-4689-9273-b33c27bc1e8c